Cogmind - Beta 9.4 @@@ ROGUE MODE // 2020.02.23 @ 22:24:45 Player: Hamilcar Result: Destroyed by as-66117 with Assembled Maul Performance ------------- Evolutions (1) 500 Regions Visited (3) 600 Robots Destroyed (5) 25 Value Destroyed (30) 30 Prototype IDs (0) 0 Alien Tech Used (0) 0 Bonus (0) 0 TOTAL SCORE: 1155 Bonus ------- None Cogmind --------- Core Integrity 0/400 Matter 257/300 Energy 100/100 System Corruption 6% Temperature Cool (0) Movement Core (50) Location -9/Mines Parts ------- > --- POWER (2) -------- (None) > --- PROPULSION (3) --- (None) > --- UTILITY (2) ------ (None) > --- WEAPON (2) ------- (None) > --- INVENTORY (4) ---- Aluminum Leg Flight Unit Flight Unit Light Assault Rifle Peak State ------------ > --- POWER ------------ Light Ion Engine Light Ion Engine > --- PROPULSION ------- Aluminum Leg Aluminum Leg > --- UTILITY ---------- Advanced Terrain Scanner Reflective Plating > --- WEAPON ----------- Pulse Rifle Assault Rifle > --- INVENTORY -------- Flight Unit Flight Unit Light Assault Rifle Light Assault Rifle [Rating: 14] Favorites ----------- Power Light Ion Engine Engine Light Ion Engine Propulsion Aluminum Leg Leg Aluminum Leg Utility Advanced Terrain Scanner Device Advanced Terrain Scanner Protection Hardened Light Armor Plating Weapon Assault Rifle Energy Gun Pulse Rifle Ballistic Gun Assault Rifle Build | -11 -10 -9 -9 ------- Run | Scr Mat Mat Min Slots Evolved 2 | . . 2 . Power 1 | . . 1 . Propulsion 1 | . . 1 . Utility . | . . . . Weapon . | . . . . Parts Attached 15 | 5 . 8 2 Power 4 | 1 . 3 . Engine 4 | 1 . 3 . Core . | . . . . Reactor . | . . . . Propulsion 2 | 2 . . . Treads . | . . . . Leg 2 | 2 . . . Wheel . | . . . . Hover . | . . . . Flight . | . . . . Utility 3 | . . 3 . Device 1 | . . 1 . Storage . | . . . . Processor . | . . . . Hackware . | . . . . Protection 2 | . . 2 . Artifact . | . . . . Weapon 6 | 2 . 2 2 Energy Gun 1 | . . 1 . Energy Cannon . | . . . . Ballistic Gun 5 | 2 . 1 2 Ballistic Cannon . | . . . . Launcher . | . . . . Special Weapon . | . . . . Impact Weapon . | . . . . Slashing Weapon . | . . . . Piercing Weapon . | . . . . Special Melee Weapon . | . . . . Unidentified Prototypes . | . . . . Parts Lost 3 | . . . 3 Power 1 | . . . 1 Propulsion . | . . . . Utility 1 | . . . 1 Weapon 1 | . . . 1 Highest Loss Streak 3 | . . . 3 Average Slot Usage (%) 67 | . 71 83 34 Engine 15 | . 14 20 7 Leg 21 | . 28 22 9 Device 5 | . . 9 3 Protection 5 | . . 9 4 Energy Gun 5 | . . 9 4 Ballistic Gun 15 | . 28 12 3 Naked Turns 40 | . . . 40 Heaviest Build 21 | 6 6 21 16 Greatest Support 20 | 20 20 20 20 Greatest Overweight (x) 1 | 1 . 1 . Average Overweight (x) . | . . . . Largest Inventory Capacity 4 | 4 4 4 4 Average Capacity 4 | 4 4 4 4 Most Carried 4 | 3 4 4 4 Average Carried 3 | 2 2 3 3 Final Capacity 4 | 4 4 4 4 Final Carried 4 | 2 4 4 4 Class Distribution -------------------- 100% | Mutant Dominant Class ---------------- Mutant | -10/Materials Mutant | -9/Materials Mutant | -9/Mines Resources | -11 -10 -9 -9 ----------- Run | Scr Mat Mat Min Matter Collected 306 | 250 36 . 20 Remotely . | . . . . Salvage Created 82 | . 51 . 31 Parts 5 | . 5 . . Haulers Intercepted . | . . . . Recyclers Shooed . | . . . . Parts Field Recycled . | . . . . Retrieved Matter . | . . . . Parts Self-Destructed . | . . . . Prevented . | . . . . Kills | -11 -10 -9 -9 ------- Run | Scr Mat Mat Min Combat Hostiles Destroyed 5 | . 3 . 2 Melee 1 | . . . 1 Guns 4 | . 3 . 1 Classes Destroyed 2 | . 1 . 1 Swarmer 3 | . 3 . . Assembled 2 | . . . 2 Best Kill Streak 3 | . 3 . 1 Combat Bots Only 3 | . 3 . 1 Max Kills in Single Turn 1 | . 1 . 1 Gunslinging . | . . . . Exploded . | . . . . Melee 1 | . . . 1 Uniques/NPCs Destroyed . | . . . . Combat | -11 -10 -9 -9 -------- Run | Scr Mat Mat Min Damage Taken 942 | . 95 . 847 Core 462 | . 32 . 430 Absorbed by Shields . | . . . . Core Remaining (%) 93 | 100 87 . . Volleys Fired 16 | . 9 . 7 Largest 2 | . 2 . 2 Hottest 83 | . 40 . 83 Shots Fired 28 | . 18 . 10 Gun 28 | . 18 . 10 Cannon . | . . . . Launcher . | . . . . Special . | . . . . Kinetic 25 | . 18 . 7 Thermal 3 | . . . 3 Explosive . | . . . . Electromagnetic . | . . . . Robot Hit Streak 3 | . 3 . 3 Robot Miss Streak 3 | . 1 . 3 Penetration Max . | . . . . Secondary Targets . | . . . . Shots Hit Robots 14 | . 10 . 4 Core Hits 17 | . 5 . 12 Critical Hits . | . . . . Critical Kills . | . . . . Critical Parts Destroyed . | . . . . Melee Attacks . | . . . . Impact . | . . . . Slashing . | . . . . Piercing . | . . . . Sneak Attacks . | . . . . Combat Hostiles . | . . . . Follow-up Attacks . | . . . . Damage Inflicted 161 | . 72 . 89 Guns 129 | . 72 . 57 Cannons . | . . . . Explosions . | . . . . Melee . | . . . . Ramming 32 | . . . 32 Kinetic 112 | . 72 . 40 Thermal 17 | . . . 17 Explosive . | . . . . Electromagnetic . | . . . . Impact . | . . . . Slashing . | . . . . Piercing . | . . . . Highest Corruption 6 | . . . 6 Average Corruption 4 | . . . 4 Corruption Purged . | . . . . Effects 2 | . . . 2 Message Errors 1 | . . . 1 Targeting Errors 1 | . . . 1 Overload Shots . | . . . . Overflow Damage . | . . . . Projectiles . | . . . . Explosions . | . . . . Melee . | . . . . Knockbacks . | . . . . Impact . | . . . . Kinetic . | . . . . Secondary . | . . . . Self-Inflicted Damage 13 | . . . 13 Shots . | . . . . Rammed 10 | . . . 10 Targets Rammed 10 | . . . 10 Kicked . | . . . . Crushed . | . . . . Highest Temperature 115 | . . . 115 Average Temperature 58 | . . . 58 Received Heat Transfer 278 | . . . 278 Siege Activations . | . . . . Robots Corrupted . | . . . . Combat Hostiles . | . . . . Parts Fried . | . . . . Impact Corruptions . | . . . . Robots Melted . | . . . . Combat Hostiles . | . . . . Parts Melted . | . . . . Heat Transferred 37 | . . . 37 Parts Sabotaged . | . . . . Parts Stolen . | . . . . Parts Stripped . | . . . . Power Chain Reactions . | . . . . Missiles Intercepted . | . . . . Alert | -11 -10 -9 -9 ------- Run | Scr Mat Mat Min Peak Influence 74 | . 74 46 17 Average Influence 23 | . 25 38 5 Maximum Alert Level . | . . . . Low Security (%) 100 | 100 100 100 100 Level 1 . | . . . . Level 2 . | . . . . Level 3 . | . . . . Level 4 . | . . . . Level 5 . | . . . . High Security . | . . . . Max Security . | . . . . Squads Dispatched 1 | . . 1 . Investigation . | . . . . Extermination . | . . . . Reinforcement 1 | . . 1 . Assault . | . . . . Garrison . | . . . . Intercept . | . . . . Construction Impeded . | . . . . Haulers Reinforced . | . . . . Stealth | -11 -10 -9 -9 --------- Run | Scr Mat Mat Min Distress Signals . | . . . . Communications Jammed . | . . . . Distress Signals . | . . . . Times Spotted 33 | . 4 2 27 Peak Tracking Total 21 | . 3 2 21 Tactical Retreats 3 | . . . 3 Traps | -11 -10 -9 -9 ------- Run | Scr Mat Mat Min Traps Triggered . | . . . . Indirectly . | . . . . Trap Hack Attempts . | . . . . Triggered . | . . . . Disarmed . | . . . . Reprogrammed . | . . . . Reused . | . . . . Traps Extracted . | . . . . Installed . | . . . . Triggered . | . . . . Machines | -11 -10 -9 -9 ---------- Run | Scr Mat Mat Min Machines Disabled . | . . . . Max in Single Turn . | . . . . Machines Sabotaged . | . . . . Garrisons Compromised . | . . . . Overloaded Fab Kills . | . . . . Fab Network Shutdowns . | . . . . Hacking | -11 -10 -9 -9 --------- Run | Scr Mat Mat Min Machines Accessed 2 | . 2 . . Terminals 2 | . 2 . . Fabricators . | . . . . Repair Stations . | . . . . Recycling Units . | . . . . Scanalyzers . | . . . . Garrison Access . | . . . . Total Hacks 4 | . 4 . . Successful 4 | . 4 . . Failed . | . . . . Catastrophic . | . . . . Database Lockouts . | . . . . Manual . | . . . . Terminals 4 | . 4 . . Fabricators . | . . . . Repair Stations . | . . . . Recycling Units . | . . . . Scanalyzers . | . . . . Garrison Access . | . . . . Terminal Hacks 4 | . 4 . . Record 4 | . 4 . . Fabricator Hacks . | . . . . Repair Station Hacks . | . . . . Recycling Unit Hacks . | . . . . Scanalyzer . | . . . . Garrison Access Hacks . | . . . . Unauthorized Hacks . | . . . . Terminals . | . . . . Fabricators . | . . . . Repair Stations . | . . . . Recycling Units . | . . . . Scanalyzers . | . . . . Garrison Access . | . . . . Data Cores Recovered . | . . . . Used . | . . . . Hacking Detections . | . . . . Full Trace Events . | . . . . Feedback Events . | . . . . Feedback Blocked . | . . . . Robot Schematics Acquired . | . . . . Robots Built . | . . . . Matter . | . . . . Time . | . . . . Total Robot Build Rating . | . . . . Part Schematics Acquired . | . . . . Parts Built . | . . . . Matter . | . . . . Time . | . . . . Total Part Build Rating . | . . . . Parts Repaired . | . . . . Time . | . . . . Parts Recycled . | . . . . Recycled Matter . | . . . . Retrieved Matter . | . . . . Retrieved Components . | . . . . Parts Scanalyzed . | . . . . Part Schematics Acquired . | . . . . Parts Damaged . | . . . . Bothacking | -11 -10 -9 -9 ------------ Run | Scr Mat Mat Min Used RIF Installer . | . . . . Robots Hacked . | . . . . Non-combat . | . . . . Combat . | . . . . Robot Hacks Applied . | . . . . Relay Couplers Released . | . . . . Robots Rewired . | . . . . Allies Hacked . | . . . . Hacks Repelled . | . . . . Allies | -11 -10 -9 -9 -------- Run | Scr Mat Mat Min Total Allies . | . . . . Largest Group . | . . . . Highest-Rated Group . | . . . . Highest-Rated Ally . | . . . . Total Orders . | . . . . Ally Attacks . | . . . . Total Damage . | . . . . Kills . | . . . . Allies Corrupted . | . . . . Allies Melted . | . . . . Intel | -11 -10 -9 -9 ------- Run | Scr Mat Mat Min Robot Analysis Total . | . . . . Derelict Logs Recovered . | . . . . Drone Launches . | . . . . Drone Recoveries . | . . . . Exploration | -11 -10 -9 -9 ------------- Run | Scr Mat Mat Min Turns Passed 442 | 56 125 173 88 Spaces Moved 337 | 42 82 129 84 Core 68 | 6 . . 62 Treads . | . . . . Legs 269 | 36 82 129 22 Wheels . | . . . . Hover . | . . . . Flight . | . . . . Fastest Speed 50 | 50 120 120 50 Average Speed 106 | 112 120 121 68 Slowest Speed 150 | 120 120 150 120 Overloaded Moves . | . . . . Propulsion Burnouts . | . . . . Robots Hopped . | . . . . Cave-ins Triggered . | . . . . Exploration Rate (%) 15 | 3 20 15 25 Regions Visited 3 Branch Regions 1 Pre-discovered Areas . | . . . . Known Exits Taken . | . . . . Unknown Exits Taken 3 | 1 1 1 . Scrap Searched . | . . . . Spaces Dug . | . . . . Terrain Destroyed . | . . . . Melee . | . . . . Projectile . | . . . . AOE . | . . . . Actions | -11 -10 -9 -9 --------- Run | Scr Mat Mat Min Total 395 | 49 92 146 108 Wait 2 | . . 1 1 Move 334 | 41 81 128 84 Hop . | . . . . Pick Up 7 | 3 2 2 . Fast Attach 9 | 4 . 5 . Attach 5 | 1 . 2 2 Detach 4 | . . 2 2 Swap 1 | . . 1 . Drop 7 | . . 5 2 Fire 16 | . 9 . 7 Melee . | . . . . Ram 10 | . . . 10 Kick . | . . . . Crush . | . . . . Escape Stasis . | . . . . Rewire . | . . . . Trap . | . . . . Miscellaneous . | . . . . Route ------- -11/Scrapyard -10/Materials -9/Materials -9/Mines History --------- Turn | Location | Event 30 | -11/Scrapyard | Discovered new exit (range 15) 57 | -11/Scrapyard | Entered Materials 119 | -10/Materials | Discovered new exit (range 16) 182 | -10/Materials | Entered another Materials area 182 | -9/Materials | Evolved 2 slots: Power x1, Propulsion x1 311 | -9/Materials | Build established: Mutant 350 | -9/Materials | Discovered new exit (range 4) 355 | -9/Materials | Entered Mines 356 | -9/Mines | Assembled infested the area 361 | -9/Mines | Assisted by a Guerilla fighting off Assembled 403 | -9/Mines | Core integrity fell below 50% 423 | -9/Mines | Lost 3 parts (1p1u1w) 440 | -9/Mines | Core integrity fell below 20% 443 | -9/Mines | Destroyed by as-66117 with Assembled Maul Last Messages --------------- 00392_ Hrd. Light Armor Plating severed. 00392_ Pulse Rifle destroyed. 00392_ Dropped Aluminum Leg. 00393_ Dropped Assault Rifle. 00393_ Slammed into as-82767. 00395_ as-82767 destroyed. 00395_ Destabilizing: System corrupted (+2). 00396_ Acquired 20 matter. 00396_ Slammed into as-78170. 00398_ L-31 Rogue heat spikes uncontrollably. 00398_ Slammed into as-13541. 00398_ L-31 Rogue overheating. 00399_ L-31 Rogue destroyed. 00400_ Knocked back. 00401_ K-01 Serf destroyed. 00414_ JJ2 N7ZL9&8FPIJYD0A0LW:ZM 00428_ as-54526 destroyed. 00440_ Slammed into as-62514. 00440_ Destabilizing: System corrupted (+1). 00441_ Slammed into as-62514. Map ----- +----------------------------------------------------+ | ?????????????????????????????????????????????????? | | ?????????????????????????????????????????????????? | | ?????????????????????????????????????????????????? | | ?????????????????????????????????????????????????? | | ?????????????????????????????????????????????????? | | ?????????????????????????????????????????????????? | | ?????????????????????????????????????????????????? | | ?????????????????????????????????????????????????? | | ?????????????????????????????????????????????????? | | ?????????????????????????????????????????????????? | | ?????????????????????????????????????????????????? | | ?????????????????????????????????????????????????? | | ?????????????????????????????????????????????????? | | ?????????????????????????????????????????????????? | | ?????????????????????????#####???????????????????? | | ????????????????????????## ##??????????????????? | | ???????????????????????## ##?????????????????? | | ???????????????????????# #?????????????????? | | ???????????????????????# #?????????????????? | | ???????????????????????## a% #?????????????????? | | ????????????????????????#a### ##?????????????????? | | ????????????????????????#a#?###??????########????? | | ????????????????????????#a#??????????# """ #????? | | ????????????????????????#a#??????????# """ #????? | | ????????????????????????#a#??????????# """ #????? | | ????????????????????????#@#??????????# ###### | | ????????????????????????#a#??????????# # | | ????????????????????????# #??????????# #### # | | ????????????????????????# #??????????# #??# | | ????????????????????????# #??????????## #####??# | | ????????????????????????# ########????# #??????### | | ????????????????????????# #????# #????????# | | ????????????????????????######## #????# #??????### | | ???????????????????????????????# #????# #??????# | | ???????????????????????????????# #????# #?????# | | ???????????????????????????????# ###### #????# | | ???????????????????????????????# #?#?# | | ???????????????????????????????######## #?? | | ??????????????????????????????????????# ## # | | ??????????????????????????????????????# ## ?## | | ??????????????????????????????????????# $???## | | ??????????????????????????????????????###?????## | | ???????????????????????????????????????????????# | | ???????????????????????????????????????????????# ? | | ???????????????????????????????????????????????? ? | | ?????????????????????????????????????????????????? | | ?????????????????????????????????????????????????? | | ?????????????????????????????????????????????????? | | ?????????????????????????????????????????????????? | | ?????????????????????????????????????????????????? | +----------------------------------------------------+ Best States ------------- Heat Dissipation 28 Energy Generation 17 Energy Capacity 290 Matter Stores 300 Matter Capacity 300 Sight Range 16 Terrain Scan Range 20 Terrain Scan Density 10 Armor Coverage 150 Resistance: TH 10 Evasion (%) 50 Item Schematics ----------------- None Robot Schematics ------------------ None Fabricated ------------ Nothing Alien Tech Used ----------------- None Achievements -------------- Hunted Challenges ------------ None Game ------ Seed GhostRestorationBuckler Manual? 0 Play Time 00:08:19 Cumulative 42.4 hours Start 2020.02.23 @ 22:18:27 End 2020.02.23 @ 22:24:45 Sessions 1 Manual Loads 0 Difficulty Rogue Special Mode None Game No. 36 Rogue 36 Adventurer 0 Explorer 0 Win Type - Total 0 Types 0/0/0/0/0/0/0 Lore% 18 Gallery% 28 Achievement% 17 Wizard Run 0 Options --------- ASCII 0 Keyboard 1 Movement Vi Keybinds 0 Fullscreen 1 Font 28/SmallcapsGlow Map View 72x54 Tactical HUD 1 Map Filters NONE Filters NONE Steam 1 RUN: c36baddb-d169-47f0-9e2b-4755b8fd5fca